bitfinex/quotes_ETHUSD_20240902
["timestamp","ask_amount","ask_price","bid_price","bid_amount"]
[1725307047178,3.95091,2531.1,2530.7,4.13504167]
[1725307051075,3.95069,2531.2,2530.7,4.13498167]
[1725307051270,3.95069,2531.2,2530.7,9.23906477]
[1725307051439,3.95069,2531.2,2530.8,2.4928]
[1725307051876,3.95069,2531.2,2530.9,0.17701405]
[1725307052387,3.95087,2531.1,2530.9,0.17701405]
[1725307054570,4.741026,2531.1,2530.9,0.17701405]
[1725307054769,4.741026,2531.1,2530.6,6.21788]
[1725307055006,3.95087,2531.1,2530.7,0.17717885]
[1725307055370,3.95101,2531.0,2530.7,0.17717885]
[1725307057074,7.90209,2531.0,2530.7,0.17717885]
[1725307057528,3.95101,2531.0,2530.7,0.17717885]
[1725307061513,3.95087,2531.1,2530.7,0.17717885]
[1725307062874,3.95087,2531.1,2530.7,4.12862885]
[1725307063919,3.95071,2531.2,2530.7,4.12862885]
[1725307064142,3.95071,2531.2,2530.9,2.3167]
[1725307064513,3.95071,2531.2,2531.0,0.17683495]
[1725307071261,7.90148,2531.2,2531.0,0.17683495]
[1725307071599,5.283548,2531.2,2530.7,6.39663]
[1725307071812,3.95071,2531.2,2530.8,0.17663657]
[1725307071947,6.32042,2531.1,2530.8,0.17663657]
[1725307072295,6.32042,2531.1,2530.6,15.18314]
[1725307072474,6.32042,2531.1,2530.9,0.17656054]
[1725307072695,3.95092,2531.1,2530.7,3.95143]
[1725307072864,3.95092,2531.1,2531.0,0.17647815]
[1725307073063,3.95092,2531.1,2530.7,3.95143]
[1725307073409,3.95092,2531.1,2530.6,15.18308]
[1725307073559,3.95092,2531.1,2530.8,0.17664294]
[1725307073767,3.95092,2531.1,2530.6,16.590404]
[1725307073968,3.95092,2531.1,2530.7,0.17672534]
[1725307077141,3.95107,2531.0,2530.7,0.17672534]
[1725307077548,7.90218,2531.0,2530.7,0.17672534]
[1725307077736,6.32857,2531.0,2530.7,0.17672534]
[1725307079081,3.95134,2530.8,2530.5,2.4452]
[1725307079288,3.95134,2530.8,2530.6,1.92676733]
[1725307080166,3.95113,2531.0,2530.6,1.92676733]
[1725307080687,3.95116,2530.9,2530.6,1.92676733]
[1725307081181,3.95101,2531.0,2530.7,0.43719673]
[1725307082369,3.95101,2531.0,2530.6,1.92676733]
[1725307086184,3.95123,2530.9,2530.6,1.92676733]
[1725307086351,3.95123,2530.9,2530.5,2.4452]
[1725307088192,3.95136,2530.8,2530.6,0.17699889]
[1725307088495,6.43926,2530.8,2530.4,11.23181]
[1725307088648,6.43926,2530.8,2530.7,0.17691648]
[1725307088851,6.43926,2530.8,2530.4,11.23181]
[1725307089089,3.95136,2530.8,2530.7,0.17691648]
[1725307089251,3.95136,2530.8,2530.4,11.23181]
[1725307089593,3.95136,2530.8,2530.4,9.4869289]
[1725307089809,3.95151,2530.7,2530.5,0.17708131]
[1725307089952,3.95163,2530.6,2530.5,0.17708131]
[1725307090152,3.95205,2530.4,2530.0,21.8085]
[1725307090394,3.95205,2530.4,2530.0,2.2885]
[1725307090690,3.95205,2530.4,2530.1,0.17741104]
[1725307091196,3.95179,2530.5,2530.1,0.17741104]
[1725307091777,3.95156,2530.7,2530.2,2.345]
[1725307091979,3.95156,2530.7,2530.3,0.17724616]
[1725307092164,3.95156,2530.7,2530.2,10.24935]
[1725307092352,3.95156,2530.7,2530.3,1.36606849]
[1725307096401,3.95156,2530.7,2530.3,5.31813849]
[1725307100086,3.95156,2530.7,2530.4,2.2624]
[1725307100400,3.95156,2530.7,2530.5,0.1773808]
[1725307115170,3.95132,2530.8,2530.5,0.1773808]
[1725307119712,1.335275,2530.8,2530.5,0.1773808]
[1725307119924,6.40203,2530.6,2530.5,0.1773808]
[1725307120130,6.40203,2530.6,2530.1,0.3965]
[1725307120306,6.40203,2530.6,2530.5,0.17737967]
[1725307120487,6.40203,2530.6,2530.1,0.3965]
[1725307120984,6.40203,2530.6,2530.2,0.17762696]
[1725307121390,3.95184,2530.5,2530.2,0.17762696]
[1725307124422,3.95184,2530.5,2530.3,0.17754452]
[1725307124629,3.95184,2530.5,2530.0,15.340699]
[1725307124802,3.95184,2530.5,2530.1,0.1777094]
[1725307126035,3.95198,2530.4,2530.1,0.1777094]
[1725307128509,3.9518,2530.5,2530.1,0.1777094]
[1725307128708,3.9518,2530.5,2530.1,1.31874134]
[1725307130044,7.90367,2530.5,2530.1,1.31874134]
[1725307130264,3.9518,2530.5,2530.1,1.31874134]
[1725307133834,3.9518,2530.5,2530.1,3.60314134]
[1725307141275,3.9518,2530.5,2530.1,7.55554134]
[1725307141432,3.9516,2530.7,2530.3,2.3408]
[1725307141762,3.9516,2530.7,2530.4,0.17384889]
[1725307145968,3.95119,2530.9,2530.4,0.17384889]
[1725307146357,7.90246,2530.9,2530.4,0.17384889]
[1725307146524,7.90246,2530.9,2530.4,1.36407219]
[1725307146855,7.90246,2530.9,2530.5,2.3988]
[1725307147368,7.90246,2530.9,2530.6,0.17360758]
[1725307149032,3.95119,2530.9,2530.6,0.17360758]
[1725307151161,7.90244,2530.9,2530.6,0.17360758]
[1725307151575,3.95119,2530.9,2530.6,0.17360758]
[1725307153180,4.75966905,2531.0,2530.6,0.17360758]
[1725307153356,3.0,2531.0,2530.6,4.89658767]
[1725307153990,3.95096,2531.1,2530.6,4.89658767]
[1725307154639,3.95094,2531.1,2530.6,4.89658767]
[1725307159884,7.9019,2531.1,2530.6,4.89658767]
[1725307160182,3.95094,2531.1,2530.6,4.12515758]
[1725307160355,7.90187,2531.1,2530.6,4.12515758]
[1725307161180,5.2924,2531.3,2530.7,3.95146]
[1725307161181,9.24304,2531.3,2530.7,3.95146]
[1725307161339,3.0,2531.2,2530.8,6.28454]
[1725307161539,3.0,2531.2,2530.8,6.45559402]
[1725307161986,6.9507,2531.2,2530.8,6.45559402]
[1725307165993,8.71036905,2531.2,2530.8,6.45559402]
[1725307168782,6.9507,2531.2,2530.8,6.45559402]
[1725307168987,8.71036905,2531.2,2530.8,6.45559402]
[1725307169507,8.71036905,2531.2,2530.8,2.50435402]
[1725307174398,12.66115905,2531.2,2530.8,2.50435402]
[1725307175109,3.95085,2531.1,2530.8,0.17105402]
[1725307175325,5.44620591,2531.1,2530.8,0.17105402]
[1725307175472,5.44620591,2531.1,2530.7,3.95137]
[1725307175673,5.44620591,2531.1,2530.9,0.1652598]
[1725307175903,5.44620591,2531.1,2530.8,0.1653422]
[1725307176206,5.44620591,2531.1,2530.7,3.95137]
[1725307176207,3.95085,2531.1,2530.7,3.95137]
[1725307176411,3.95085,2531.1,2530.9,0.1652598]
[1725307176639,3.95085,2531.1,2530.8,0.16536132]
[1725307176941,9.66136905,2531.1,2531.0,0.16519653]
[1725307177237,9.66136905,2531.1,2530.5,2.269]
[1725307177238,3.95119,2530.9,2530.5,2.269]
[1725307177531,3.95119,2530.9,2530.6,0.16555162]
[1725307179609,3.95102,2531.0,2530.6,0.16555162]
[1725307181704,3.95098,2531.1,2530.7,6.25354]
[1725307182130,3.95098,2531.1,2530.8,0.16548239]
[1725307182312,6.95071,2531.2,2530.7,6.25354]
[1725307182527,6.95071,2531.2,2530.7,7.37743492]
[1725307182836,6.95071,2531.2,2530.8,0.16547602]
[1725307183207,6.95071,2531.2,2530.7,7.37743492]
[1725307183438,6.95071,2531.2,2530.9,0.16539362]
[1725307183610,10.9015,2531.2,2530.8,0.16547602]
[1725307183812,6.95071,2531.2,2530.7,6.25354]
[1725307184037,6.95071,2531.2,2530.9,0.16532991]
[1725307184247,6.95071,2531.2,2530.8,0.16541231]
[1725307184445,6.95071,2531.2,2531.0,0.16524752]
[1725307184622,6.95071,2531.2,2530.9,0.16532991]
[1725307184833,6.95071,2531.2,2531.1,0.16516513]
[1725307185048,6.95071,2531.2,2531.0,0.16524752]
[1725307185248,6.95071,2531.2,2531.1,0.16516513]
[1725307185761,6.95071,2531.2,2530.8,3.95131]
[1725307185950,6.95071,2531.2,2531.1,0.16516513]
[1725307186158,6.95071,2531.2,2530.8,3.95131]
[1725307186922,6.95071,2531.2,2530.9,0.16532991]
[1725307192402,3.0,2531.2,2530.9,7.1167539]
[1725307192686,3.0,2531.3,2530.9,7.1167539]
[1725307192884,3.0,2531.3,2530.9,6.47487991]
[1725307194398,6.95055,2531.3,2530.9,6.47487991]
[1725307194995,6.95055,2531.3,2530.9,0.16532991]
[1725307194996,2.3056,2531.2,2530.9,0.16532991]
[1725307199272,3.9507,2531.2,2530.9,0.16532991]
[1725307201611,6.95056,2531.3,2530.9,0.16532991]
[1725307201911,3.0,2531.3,2531.0,2.3767]
[1725307203291,6.95055,2531.3,2531.0,2.3767]
[1725307203601,6.95055,2531.3,2530.9,0.16532991]
[1725307205914,9.26995,2531.3,2530.9,0.16532991]
[1725307206717,6.95055,2531.3,2530.9,0.16532991]
[1725307206867,3.0,2531.3,2530.9,4.11647991]
[1725307207489,3.0,2531.3,2530.9,5.1685049]
[1725307207701,3.95047,2531.4,2531.0,2.4623]
[1725307208209,5.70992905,2531.5,2531.0,6.4133]
[1725307208387,3.0,2531.4,2531.0,6.4133]
[1725307209169,5.70992905,2531.5,2531.1,3.95084]
[1725307209369,3.0,2531.4,2531.0,2.4623]
[1725307209679,3.0,2531.4,2530.9,5.1683949]
[1725307209680,9.2034,2531.4,2530.9,5.1683949]
[1725307210411,9.2034,2531.4,2530.9,4.11636991]
[1725307210656,3.95056,2531.3,2530.9,4.11636991]
[1725307211509,3.95054,2531.3,2530.9,0.16532991]
[1725307211904,7.90121,2531.3,2530.9,0.16532991]
[1725307212142,3.95054,2531.3,2530.9,0.16532991]
[1725307212324,3.95054,2531.3,2530.9,2.42442991]
[1725307213306,3.95054,2531.3,2530.9,6.37554991]
[1725307213533,3.95054,2531.3,2530.9,7.4082229]
[1725307214443,6.95041,2531.4,2530.9,7.4082229]
[1725307215733,3.0,2531.4,2531.0,3.95096]
[1725307215933,3.0,2531.4,2531.1,3.95084]
[1725307217365,3.0,2531.4,2531.2,0.16042205]
[1725307218852,3.94951,2532.0,2531.3,2.4022]
[1725307219053,3.94977,2531.8,2531.4,0.6513222]
[1725307219265,3.94977,2531.8,2531.4,0.1602128]
[1725307219680,3.94977,2531.8,2531.3,6.35273]
[1725307219681,7.89964,2531.8,2531.3,5.53243226]
[1725307219975,6.30427,2531.8,2531.4,0.15487238]
[1725307220202,3.94991,2531.7,2531.4,0.15487238]
[1725307221088,6.30427,2531.8,2531.4,0.15487238]
[1725307221381,3.0,2531.7,2531.4,4.10524238]
[1725307221584,3.0,2531.9,2531.4,8.05548238]
[1725307221877,3.94976,2531.8,2531.4,0.15487238]
[1725307222081,3.95007,2531.6,2531.4,0.15487238]
[1725307222567,3.95007,2531.6,2531.5,0.15479002]
[1725307223106,6.94992,2531.7,2531.2,6.40122]
[1725307223384,6.94992,2531.7,2531.2,7.436431]
[1725307223605,6.94992,2531.7,2531.3,0.15495474]
[1725307223938,6.94992,2531.7,2531.2,6.40122]
[1725307223939,6.94992,2531.7,2531.2,10.35184]
[1725307224181,6.94992,2531.7,2531.4,0.15487238]
[1725307224384,6.94992,2531.7,2531.3,0.15495474]
[1725307224679,6.94992,2531.7,2531.5,0.15479002]
[1725307224883,8.4444669,2531.7,2531.4,0.15487238]
[1725307225055,8.4444669,2531.7,2531.2,6.4012]
[1725307225056,6.94992,2531.7,2531.6,0.15470766]
[1725307225256,6.94992,2531.7,2531.5,0.15479002]
[1725307225561,6.94992,2531.7,2531.6,0.15470766]
[1725307226083,3.94961,2531.9,2531.4,2.3721]
[1725307226245,3.0,2531.8,2531.6,0.15470766]
[1725307226447,3.0,2531.8,2531.5,0.15479002]
[1725307226791,3.0,2531.8,2531.6,0.15434525]
[1725307226959,3.87092791,2531.8,2531.6,0.15434525]
[1725307227373,3.87092791,2531.8,2531.4,6.32247]
[1725307227548,3.0,2531.8,2531.7,0.15422476]
[1725307227748,3.0,2531.8,2531.4,6.32247]
[1725307227960,3.0,2531.8,2531.7,0.15422476]
[1725307228163,3.0,2531.8,2531.4,10.27271]
[1725307228378,3.0,2531.8,2531.7,0.15422476]
[1725307228577,3.87092791,2531.8,2531.4,6.3224]
[1725307228804,2.3958,2532.2,2531.7,0.15422476]
[1725307229111,1.75966905,2532.3,2531.8,6.39443]
[1725307229283,1.75966905,2532.3,2531.8,6.54857242]
[1725307229605,0.41049691,2532.2,2531.8,4.10387242]
[1725307229893,0.41049691,2532.2,2531.8,4.10382242]
[1725307230067,3.41049691,2532.2,2531.8,4.10382242]
[1725307230993,3.41049691,2532.2,2531.8,4.10381242]
[1725307231192,3.41049691,2532.2,2531.8,8.05348242]
[1725307231493,3.0,2532.2,2531.9,2.4447]
[1725307231698,3.0,2532.3,2532.0,0.15379978]
[1725307231988,5.70842905,2532.5,2532.0,0.15379978]
[1725307231989,3.94876,2532.5,2532.0,4.10310978]
[1725307232352,4.97301,2532.5,2532.0,4.10310978]
[1725307232553,8.92178,2532.5,2532.0,4.10310978]
[1725307232853,4.97301,2532.5,2532.0,4.10310978]
[1725307234003,3.0,2532.7,2532.3,3.94897]
[1725307234168,0.1257395,2532.8,2532.4,3.94878]
[1725307234360,0.1257395,2532.8,2532.4,4.10225054]
[1725307234554,0.77878945,2532.8,2532.4,4.10225054]
[1725307234991,4.72698945,2532.8,2532.4,4.10225054]
[1725307235496,3.94837,2532.7,2532.4,0.15347054]
[1725307235706,3.94837,2532.7,2532.2,7.89811]
[1725307235885,3.94837,2532.7,2532.2,7.89809]
[1725307236212,3.94837,2532.7,2532.3,0.15325418]
[1725307237086,9.2081379,2532.7,2532.3,0.15325418]
[1725307237311,3.94877,2532.5,2532.3,0.15325418]
[1725307237459,3.94877,2532.5,2531.9,6.73352]
[1725307237460,3.94882,2532.4,2531.9,6.73352]
[1725307237861,3.94882,2532.4,2532.0,0.15282117]
[1725307238095,4.91456591,2532.4,2532.0,0.15282117]
[1725307238309,3.94914,2532.2,2532.0,0.15282117]
[1725307238617,3.94914,2532.2,2531.7,6.27771]
[1725307238968,3.94914,2532.2,2531.8,0.15299218]
[1725307239504,3.94914,2532.2,2531.9,0.15290985]
[1725307240014,7.8984,2532.2,2531.7,6.27771]
[1725307240621,7.8984,2532.2,2531.8,0.15317643]
[1725307240622,3.9493,2532.1,2531.8,0.15317643]
[1725307240824,3.9496,2531.9,2531.8,0.15317643]
[1725307240986,3.9496,2531.9,2531.6,7.28]
[1725307241187,3.9496,2531.9,2531.8,0.15322726]
[1725307241848,3.9496,2531.9,2531.4,6.42804]
[1725307242000,3.9496,2531.9,2531.8,0.15323362]
[1725307242204,3.9496,2531.9,2531.4,6.42804]
[1725307242403,3.94974,2531.9,2531.8,0.15323362]
[1725307242626,3.94974,2531.9,2531.4,3.95034]
[1725307242627,3.94981,2531.8,2531.4,3.95034]
[1725307242799,3.94981,2531.8,2531.3,11.23052]
[1725307243130,3.94981,2531.8,2531.3,13.016748]
[1725307243491,7.89992,2531.7,2531.3,9.066228]
[1725307243733,3.94993,2531.7,2531.3,7.28]
[1725307245242,3.94993,2531.7,2531.2,6.23538]
[1725307245459,3.94993,2531.7,2531.2,6.23532]
[1725307245639,3.94993,2531.7,2531.2,10.25025556]
[1725307247019,3.94993,2531.7,2531.3,3.95053]
[1725307251151,7.89942,2531.9,2531.3,3.95053]
[1725307251353,3.94971,2531.9,2531.3,3.95053]
[1725307251652,3.94971,2531.9,2531.3,4.969115]
[1725307251872,3.94983,2531.8,2531.3,4.969115]
[1725307252838,3.94983,2531.8,2531.4,0.15264181]
[1725307261102,3.95008,2531.6,2531.4,0.15264181]
[1725307261309,3.95025,2531.5,2531.0,10.1001]
[1725307261470,6.38495,2531.5,2531.0,20.4229206]
[1725307261671,6.38495,2531.5,2531.0,20.4229006]
[1725307262010,3.95008,2531.6,2531.2,3.95068]
[1725307262323,3.95008,2531.6,2531.3,2.687268]
[1725307262670,3.94991,2531.7,2531.3,2.687268]
[1725307263209,3.95008,2531.6,2531.3,2.687268]
[1725307263506,3.95017,2531.6,2531.1,6.34214]
[1725307263801,3.95017,2531.6,2531.2,2.03904406]
[1725307264475,3.95017,2531.6,2531.2,5.98973406]
[1725307264859,3.94992,2531.7,2531.2,5.98973406]
[1725307265061,3.94992,2531.7,2531.2,9.94035406]
[1725307265295,3.94992,2531.7,2531.2,5.98965406]
[1725307266929,2.4403,2531.6,2531.0,11.23088]
[1725307267132,10.34181,2531.2,2531.0,7.28]
[1725307267346,10.34181,2531.2,2530.6,13.48441]
[1725307267347,3.95089,2531.1,2530.6,13.48441]
[1725307267509,3.95089,2531.1,2530.6,17.49934556]
[1725307267713,3.95089,2531.1,2530.7,0.14356239]
[1725307268234,6.391,2531.2,2530.7,0.14356239]
[1725307268395,6.391,2531.2,2530.7,4.09503239]
[1725307269424,6.391,2531.2,2530.7,0.14356239]
[1725307269425,3.95102,2531.0,2530.7,0.14356239]
[1725307269594,6.27715,2530.9,2530.7,0.14356239]
[1725307269809,3.95131,2530.8,2530.7,0.14356239]
[1725307270337,3.95131,2530.8,2530.3,16.19209]
[1725307270338,6.27706,2530.9,2530.3,16.19198]
[1725307270532,6.27706,2530.9,2530.4,0.14429286]
[1725307270735,10.2283,2530.9,2530.4,4.09620286]
[1725307270962,6.27706,2530.9,2530.4,4.09620286]
[1725307271493,6.27706,2530.9,2530.4,0.14429286]
[1725307271700,6.27706,2530.9,2530.4,4.09621286]
[1725307273548,10.22832,2530.9,2530.4,0.14429286]
[1725307273845,3.95133,2530.8,2530.4,0.14429286]
[1725307274418,2.3259,2530.9,2530.4,4.09621286]
[1725307275098,6.27707,2530.9,2530.4,4.09621286]
[1725307275505,6.27707,2530.9,2530.5,3.95177]
[1725307275727,3.95117,2530.9,2530.6,0.14123058]
[1725307279151,5.031973,2530.9,2530.4,2.4084]
[1725307279346,3.95117,2530.9,2530.5,0.14126847]
[1725307280046,3.95117,2530.9,2530.5,4.09304847]
[1725307287460,3.95117,2530.9,2530.5,0.14126847]
[1725307287972,2.4821,2530.7,2530.5,0.14126847]
[1725307288177,6.43366,2530.7,2530.2,11.2322]
[1725307288344,6.43366,2530.7,2530.6,0.14025272]
[1725307288528,6.43366,2530.7,2530.2,15.18437]
[1725307288724,3.95131,2530.8,2530.3,4.09257999]
[1725307290846,3.95131,2530.8,2530.3,0.14049999]
[1725307291043,5.15940623,2530.8,2530.3,0.14049999]
[1725307291345,3.95149,2530.7,2530.4,0.14049389]
[1725307291533,3.95149,2530.7,2530.2,11.23216]
[1725307291734,6.37134,2530.6,2530.3,0.14058269]
[1725307292045,6.37134,2530.6,2530.1,6.28807]
[1725307292046,10.32308,2530.6,2530.1,6.28807]
[1725307292239,10.32308,2530.6,2530.4,0.14050026]
[1725307292542,10.32308,2530.6,2530.5,0.14041783]
[1725307292742,7.79371434,2530.6,2530.1,6.28807]
[1725307292939,6.37134,2530.6,2530.2,0.14066512]
[1725307294968,3.95201,2530.4,2530.0,2.667]
[1725307295290,3.95201,2530.4,2530.1,0.14083027]
[1725307295870,7.90403,2530.4,2530.1,0.14083027]
[1725307296146,2.419,2530.3,2530.1,0.14083027]
[1725307296365,2.419,2530.3,2529.9,7.90522]
[1725307296566,2.419,2530.3,2530.0,0.14130716]
[1725307297292,6.37113,2530.3,2530.0,0.14130716]
[1725307297578,3.9523,2530.2,2529.7,4.3493]
[1725307297896,8.94290257,2530.3,2529.7,4.3493]
[1725307297897,12.89515257,2530.3,2529.8,0.14150389]
[1725307298093,12.89511257,2530.3,2529.8,0.14150389]
[1725307298388,1.28951126,2530.2,2529.9,0.14142143]
[1725307298892,1.28951126,2530.2,2529.7,8.30225]
[1725307299041,12.89511257,2530.3,2530.0,0.14133897]
[1725307299243,12.89511257,2530.3,2529.7,8.30225]
[1725307299488,12.89511257,2530.3,2530.1,0.14128197]
[1725307299688,12.89511257,2530.3,2529.7,4.3493]
[1725307299981,8.94290257,2530.3,2529.7,4.3493]
[1725307300140,8.94290257,2530.3,2529.8,0.14152934]
[1725307300141,3.95228,2530.2,2529.8,0.14152934]
[1725307300348,3.95228,2530.2,2529.7,8.30225]
[1725307300572,3.95228,2530.2,2529.8,0.14152934]
[1725307300802,3.95228,2530.2,2529.7,3.9529]
[1725307300971,3.95228,2530.2,2529.9,0.14144688]
[1725307301174,3.95228,2530.2,2529.7,7.90584]
[1725307301391,3.95228,2530.2,2529.8,0.14152934]
[1725307301874,3.95228,2530.2,2529.7,3.9529]
[1725307302193,3.95228,2530.2,2529.8,0.14152934]
[1725307302377,7.18411023,2530.3,2529.8,4.09436934]
[1725307304144,6.6054126,2530.2,2529.8,0.14152934]
[1725307304463,6.6054126,2530.2,2529.6,7.28]
[1725307304464,6.22218,2530.0,2529.6,7.28]
[1725307304680,3.55235926,2530.0,2529.9,0.14153597]
[1725307304888,7.98072234,2530.2,2529.6,11.23316]
[1725307305085,7.98072234,2530.2,2529.9,0.14153597]
[1725307305086,3.95242,2530.1,2529.9,0.14153597]
[1725307305293,3.95242,2530.1,2529.6,11.23316]
[1725307305479,3.95242,2530.1,2530.0,0.14145352]
[1725307305997,3.95261,2530.0,2529.6,7.28]
[1725307306387,3.95293,2529.8,2529.6,7.28]
[1725307307698,3.95293,2529.8,2529.3,3.95353]
[1725307307972,9.11295723,2529.8,2529.3,3.95353]
[1725307308173,5.15998723,2529.8,2529.3,3.95353]
[1725307308406,9.11300723,2529.8,2529.3,3.95353]
[1725307309077,5.15998723,2529.8,2529.3,3.95353]
[1725307309577,9.11294723,2529.8,2529.3,3.95353]
[1725307309822,5.15998723,2529.8,2529.3,3.95353]
[1725307310119,9.11294723,2529.8,2529.3,3.95353]
[1725307310909,9.11295723,2529.8,2529.3,3.95353]
[1725307311290,5.15998723,2529.8,2529.3,3.95353]
[1725307311484,9.11295723,2529.8,2529.3,3.95353]
[1725307312306,5.15998723,2529.8,2529.3,3.95353]
[1725307312826,5.15998723,2529.8,2529.4,0.14267338]
[1725307313619,3.95305,2529.7,2529.4,0.14267338]
[1725307313821,2.439,2529.6,2529.4,0.14267338]
[1725307313971,2.439,2529.6,2529.2,3.95379]
[1725307314177,2.439,2529.6,2529.3,0.14275588]
[1725307314516,2.439,2529.6,2529.1,11.23394]
[1725307314718,2.439,2529.6,2529.4,0.14267338]
[1725307314913,2.4143,2529.8,2529.3,6.39194]
[1725307315116,2.4143,2529.8,2529.5,0.14260363]
[1725307315412,7.17985323,2529.8,2529.6,0.14252114]
[1725307315804,7.17985323,2529.8,2529.3,6.39194]
[1725307316125,7.17985323,2529.8,2529.7,0.14243867]
[1725307316315,7.17985323,2529.8,2529.3,6.39194]
[1725307316817,7.17985323,2529.8,2529.4,0.14268611]
[1725307316991,3.22689323,2529.8,2529.4,0.14268611]
[1725307317200,2.4143,2529.8,2529.4,4.09617611]
[1725307317615,2.4143,2529.8,2529.4,0.14268611]
[1725307317797,6.36723,2529.8,2529.4,0.14268611]
[1725307320620,2.4143,2529.8,2529.4,0.14268611]
[1725307322097,5.4143,2530.0,2529.4,0.14268611]
[1725307322447,5.4143,2530.0,2529.5,3.95329]
[1725307322596,5.4143,2530.0,2529.5,4.09595093]
[1725307324138,9.36687,2530.0,2529.5,4.09595093]
[1725307324298,11.34975146,2530.0,2529.5,4.09595093]
[1725307325427,5.4143,2530.0,2529.5,4.09595093]
[1725307325604,5.4143,2530.0,2529.6,3.95317]
[1725307325944,5.4143,2530.0,2529.7,0.14249597]
[1725307326945,5.4143,2530.0,2529.5,3.95331]
[1725307327157,5.4143,2530.0,2529.8,0.1424135]
[1725307327450,6.92211623,2530.0,2529.9,0.14233104]
[1725307327603,9.36686,2530.0,2529.9,0.14233104]
[1725307327810,9.36686,2530.0,2529.4,7.9069]
[1725307328120,9.36686,2530.0,2529.5,0.14266093]
[1725307328325,1.50781723,2529.9,2529.5,0.14266093]
[1725307328723,5.46053723,2529.9,2529.5,0.14266093]
[1725307329337,3.95319,2529.6,2529.5,0.14266093]
[1725307329657,3.95319,2529.6,2529.1,7.28]
[1725307329845,6.3119,2529.5,2529.0,3.95402]
[1725307330068,3.32501323,2529.5,2529.0,3.95402]
[1725307330721,7.27837323,2529.5,2529.0,3.95402]
[1725307330982,3.32501323,2529.5,2529.0,3.95402]
[1725307332263,7.27836323,2529.5,2529.0,3.95402]
[1725307333346,2.3585,2529.5,2529.0,3.95402]
[1725307335078,6.31187,2529.5,2529.0,3.95402]
[1725307338316,3.95337,2529.5,2529.0,3.95402]
[1725307338556,2.4532,2529.4,2529.0,3.95402]
[1725307342847,2.4532,2529.4,2529.1,0.14334751]
[1725307343193,2.4532,2529.4,2529.1,4.09723751]
[1725307347139,2.4532,2529.4,2529.2,3.95381]
[1725307347453,2.4532,2529.4,2529.3,0.14318886]
[1725307347855,2.4532,2529.4,2529.2,3.95381]
[1725307348034,2.4532,2529.4,2529.3,0.14318886]
[1725307348236,2.4532,2529.4,2529.2,3.95381]
[1725307348454,2.4532,2529.4,2529.3,0.14318886]
[1725307348849,2.4532,2529.4,2529.2,3.95381]
[1725307349052,2.4532,2529.4,2529.3,0.14318886]
[1725307349438,2.4532,2529.4,2529.2,3.95381]
[1725307349659,2.4532,2529.4,2529.3,0.14318886]
[1725307350362,2.4532,2529.4,2529.3,0.14316339]
[1725307350781,2.4532,2529.4,2529.1,3.95396]
[1725307350934,2.4532,2529.4,2529.3,0.14316339]
[1725307351137,2.4532,2529.4,2529.2,0.14326499]
[1725307351374,2.4532,2529.4,2529.3,0.14318249]
[1725307351747,2.4532,2529.4,2529.1,3.95396]
[1725307351952,2.4532,2529.4,2529.3,0.14318249]
[1725307352492,2.4532,2529.4,2529.1,3.95397]
[1725307352780,2.4532,2529.4,2529.3,0.14321433]
[1725307352976,2.4532,2529.4,2529.2,0.14329683]
[1725307353279,2.4532,2529.4,2529.3,0.14321433]
[1725307353829,6.27896,2529.3,2528.8,11.23431]
[1725307354195,2.3253,2529.3,2528.9,3.95427]
[1725307355925,2.3253,2529.3,2529.0,3.95411]
[1725307357623,2.3253,2529.3,2529.1,0.14339844]
[1725307370915,2.3253,2529.3,2528.9,3.95427]
[1725307371113,2.3253,2529.3,2529.2,0.14335414]
[1725307371314,2.3253,2529.3,2528.9,3.95427]
[1725307371544,2.3253,2529.3,2529.2,0.14335414]
[1725307371751,3.348543,2529.3,2528.9,3.95427]
[1725307371918,2.3253,2529.3,2529.2,0.14335414]
[1725307372100,2.3253,2529.3,2528.9,3.95427]
[1725307372302,2.3253,2529.3,2529.2,0.14335414]
[1725307372508,2.3253,2529.3,2528.9,3.95427]
[1725307372734,2.3253,2529.3,2529.2,0.14335414]
[1725307373042,2.3253,2529.3,2528.9,3.95427]
[1725307373223,2.3253,2529.3,2529.2,0.14335414]
[1725307373423,2.3253,2529.3,2528.9,3.95427]
[1725307373638,2.3253,2529.3,2529.2,0.14341145]
[1725307373811,2.3253,2529.3,2528.9,3.95427]
[1725307374017,2.3253,2529.3,2529.2,0.14341145]
[1725307374212,2.3253,2529.3,2528.9,3.95427]
[1725307374419,2.3253,2529.3,2529.2,0.14341145]
[1725307374747,2.3253,2529.3,2529.2,0.14341782]
[1725307375121,2.3253,2529.3,2528.9,3.95427]
[1725307375306,2.3253,2529.3,2529.2,0.1434433]
[1725307375645,2.3253,2529.3,2528.9,3.95427]
[1725307375812,6.27896,2529.3,2529.2,0.1434433]
[1725307376019,6.27896,2529.3,2528.9,3.95427]
[1725307376230,6.27896,2529.3,2529.2,0.1434433]
[1725307376407,7.302207,2529.3,2529.2,0.1434433]
[1725307376600,7.302207,2529.3,2528.9,3.95427]
[1725307376799,7.302207,2529.3,2529.2,0.1434433]
[1725307376800,6.27896,2529.3,2529.2,0.1434433]
[1725307377005,6.27896,2529.3,2528.9,3.95427]
[1725307377213,6.27896,2529.3,2529.2,0.14341782]
[1725307377420,6.27896,2529.3,2528.9,3.95427]
[1725307377621,6.27896,2529.3,2529.2,0.14341782]
[1725307378017,6.27896,2529.3,2528.9,3.95427]
[1725307378228,6.27896,2529.3,2529.2,0.14342419]
[1725307378429,6.27896,2529.3,2528.9,3.95427]
[1725307378662,6.27896,2529.3,2529.2,0.14342419]
[1725307379605,6.27896,2529.3,2528.9,3.95427]
[1725307379806,6.27896,2529.3,2529.2,0.14342419]
[1725307380035,6.27896,2529.3,2529.2,0.14341145]
[1725307380237,6.27896,2529.3,2528.9,3.95427]
[1725307380436,6.27896,2529.3,2529.0,0.54361798]
[1725307380662,2.3253,2529.3,2529.0,0.14357648]
[1725307380977,3.95351,2529.4,2529.0,0.14357648]
[1725307381676,3.95351,2529.4,2529.0,4.09768648]